Cogmind - Beta 17 @@@ ROGUE MODE // 2026.08.21 @ 14:53:54 Player: BoomBlip Result: Smashed by cave-in Performance ------------- Evolutions (0) 0 Regions Visited (3) 600 Robots Destroyed (5) 25 Value Destroyed (141) 141 Prototype IDs (0) 0 Alien Tech Used (0) 0 Bonus (37) 37 TOTAL SCORE: 803 Bonus ------- Follower Combat Kills 37 Cogmind --------- Core Integrity 0/250 Matter 215/300 Energy 250/250 System Corruption 19% Temperature Cool (0) Movement Rolling (200) Ox8 Location -10/Subcaves Parts ------- > --- POWER (1) -------- Ion Engine > --- PROPULSION (2) --- Wheel > --- UTILITY (2) ------ Improved Heat Sink Huge Storage Unit > --- WEAPON (2) ------- (None) > --- INVENTORY (25) --- Subdweller Power Source Wheel Compact Wheel Small Laser Peak State ------------ > --- POWER ------------ Ion Engine > --- PROPULSION ------- Wheel Subdweller Monowheel > --- UTILITY ---------- Improved Heat Sink Huge Storage Unit > --- WEAPON ----------- Light Assault Rifle Light Assault Rifle > --- INVENTORY -------- Subdweller Power Source Wheel Wheel Compact Wheel Compact Wheel Small Laser Small Laser Battle Cannon [Rating: 11] Favorites ----------- Power Ion Engine Engine Ion Engine Propulsion Wheel Leg Aluminum Leg Wheel Wheel Utility Huge Storage Unit Device Improved Heat Sink Storage Huge Storage Unit Weapon Light Assault Rifle Energy Gun Small Laser Ballistic Gun Light Assault Rifle Ballistic Cannon Battle Cannon Build | -11 -10 -10 -10 ------- Run | Yrd Mat Min Sub Slots Evolved . | . . . . Power . | . . . . Propulsion . | . . . . Utility . | . . . . Weapon . | . . . . Parts Attached 12 | . 6 1 5 Power 1 | . 1 . . Engine 1 | . 1 . . Core . | . . . . Reactor . | . . . . Propulsion 5 | . 2 . 3 Treads . | . . . . Leg . | . . . . Wheel 5 | . 2 . 3 Hover . | . . . . Flight . | . . . . Utility 2 | . 2 . . Device 1 | . 1 . . Storage 1 | . 1 . . Processor . | . . . . Hackware . | . . . . Protection . | . . . . Artifact . | . . . . Weapon 4 | . 1 1 2 Energy Gun 1 | . 1 . . Energy Cannon . | . . . . Ballistic Gun 2 | . . 1 1 Ballistic Cannon 1 | . . . 1 Launcher . | . . . . Special Weapon . | . . . . Impact Weapon . | . . . . Slashing Weapon . | . . . . Piercing Weapon . | . . . . Special Melee Weapon . | . . . . Unidentified Prototypes . | . . . . Parts Lost 7 | . . . 7 Power . | . . . . Propulsion 3 | . . . 3 Utility . | . . . . Weapon 4 | . . . 4 Highest Loss Streak 7 | . . . 7 To Critical Strikes . | . . . . Average Backups 5 | 6 4 4 7 Power . | 1 . . . Propulsion 3 | 4 3 3 3 Utility . | . . . . Weapon 1 | 1 1 1 2 Tool/Special . | . . . . Unused Backups 1 | . . . 1 Power 1 | . . . 1 Propulsion . | . . . . Utility . | . . . . Weapon . | . . . . Tool/Special . | . . . . Average Slot Usage (%) 97 | . 87 100 99 Engine 13 | . 12 14 14 Wheel 26 | . 23 28 27 Device 12 | . 5 14 14 Storage 14 | . 14 14 14 Energy Gun 5 | . 14 6 . Ballistic Gun 21 | . 14 21 24 Peak Build Rating 11 | 6 9 9 11 Average Rating 8 | 6 7 8 10 On Entrance 7 | 6 6 9 9 Avg Prop Armor Cover (%) . | . . . . Naked Turns . | . . . . Heaviest Build 90 | 12 88 88 90 Greatest Support 30 | 20 20 20 30 Greatest Overweight (x) 8 | . 8 4 4 Average Overweight (x) 3 | . 3 4 2 Largest Inventory Capacity 25 | 8 25 25 25 Average Capacity 23 | 8 21 25 25 Most Carried 8 | 6 7 5 8 Average Carried 5 | 6 4 4 7 Final Capacity 25 | 8 25 25 25 Final Carried 6 | 6 4 5 4 Class Distribution -------------------- 100% | Mutant Dominant Class ---------------- Mutant | -10/Materials Mutant | -10/Mines Mutant | -10/Subcaves Resources | -11 -10 -10 -10 ----------- Run | Yrd Mat Min Sub Matter Collected 345 | 199 67 34 45 Remotely . | . . . . Salvage Created 121 | . 87 21 13 Parts 5 | . 4 1 . Haulers Intercepted . | . . . . Recyclers Shooed . | . . . . Parts Field Recycled . | . . . . Retrieved Matter . | . . . . Parts Self-Destructed 5 | . . . 5 Prevented . | . . . . Parts Restored . | . . . . Kills | -11 -10 -10 -10 ------- Run | Yrd Mat Min Sub Combat Hostiles Destroyed 5 | . 2 2 1 Guns 5 | . 2 2 1 Classes Destroyed 3 | . 1 1 1 Swarmer 2 | . . 2 . Grunt 2 | . 2 . . Subdweller 1 | . . . 1 Best Kill Streak 2 | . 1 2 1 Combat Bots Only 2 | . 1 2 1 Max Kills in Single Turn 1 | . 1 1 1 Gunslinging . | . . . . Exploded . | . . . . Melee . | . . . . Uniques/NPCs Destroyed . | . . . . Combat | -11 -10 -10 -10 -------- Run | Yrd Mat Min Sub Hostile Shots Fired 21 | . 9 . 12 Missed 4 | . 1 . 3 Hits 17 | . 8 . 9 Projectile 17 | . 8 . 9 Damage Taken 1279 | . 99 . 1180 Core 264 | . 10 . 254 Absorbed by Shields . | . . . . Core Remaining (%) 100 | 100 . . . Volleys Fired 33 | . 6 4 23 Largest 2 | . 2 2 2 Hottest 60 | . 60 60 60 Shots Fired 52 | . 12 8 32 Gun 35 | . 12 8 15 Cannon 17 | . . . 17 Launcher . | . . . . Special . | . . . . Kinetic 37 | . 6 4 27 Thermal 15 | . 6 4 5 Explosive . | . . . . Electromagnetic . | . . . . Robot Hit Streak 15 | . 10 15 11 Robot Miss Streak 2 | . . 2 2 Penetration Max . | . . . . Secondary Targets . | . . . . Shots Hit Robots 30 | . 10 6 14 Core Hits 11 | . 5 3 3 Critical Kills . | . . . . Critical Parts Destroyed . | . . . . Critical Strikes . | . . . . Melee Attacks . | . . . . Impact . | . . . . Slashing . | . . . . Piercing . | . . . . Sneak Attacks . | . . . . Combat Hostiles . | . . . . Follow-up Attacks . | . . . . Damage Inflicted 355 | . 102 59 194 Guns 231 | . 102 59 70 Cannons 124 | . . . 124 Explosions . | . . . . Melee . | . . . . Ramming . | . . . . Kinetic 225 | . 35 26 164 Thermal 130 | . 67 33 30 Explosive . | . . . . Electromagnetic . | . . . . Impact . | . . . . Slashing . | . . . . Piercing . | . . . . Highest Corruption 12 | . . . 12 Average Corruption 10 | . . . 10 Corruption Purged . | . . . . Corruption Blocked . | . . . . Effects 1 | . . . 1 Message Errors 1 | . . . 1 Overload Shots . | . . . . Overflow Damage . | . . . . Projectiles . | . . . . Explosions . | . . . . Melee . | . . . . Knockbacks 2 | . . . 2 Impact . | . . . . Kinetic 2 | . . . 2 Secondary . | . . . . Self-Inflicted Damage . | . . . . Shots . | . . . . Rammed . | . . . . Targets Rammed . | . . . . Kicked . | . . . . Crushed . | . . . . Highest Temperature 76 | . 76 . . Average Temperature 43 | . 43 . . Received Heat Transfer 114 | . 60 . 54 Siege Activations . | . . . . Martial Activations . | . . . . Shielding Activations . | . . . . Robots Disrupted . | . . . . Combat Hostiles . | . . . . Robots Corrupted . | . . . . Combat Hostiles . | . . . . Parts Fried . | . . . . Impact Corruptions . | . . . . Robots Melted . | . . . . Combat Hostiles . | . . . . Parts Melted . | . . . . Heat Transferred 300 | . 150 75 75 Parts Sabotaged . | . . . . Parts Stolen . | . . . . Parts Stripped . | . . . . Power Chain Reactions . | . . . . Alert | -11 -10 -10 -10 ------- Run | Yrd Mat Min Sub Maximum Alert Level . | . . . . Low Security (%) 100 | 100 100 100 . Level 1 . | . . . . Level 2 . | . . . . Level 3 . | . . . . Level 4 . | . . . . Level 5 . | . . . . High Security . | . . . . Max Security . | . . . . Peak Influence 68 | . 40 68 . Initial 7 | . . 7 . Average 15 | . 15 18 . Influence Increases 133 | . 55 78 . Destroy 0b10 Robot/C 100 | . 40 60 . Destroy Leader 20 | . 10 10 . Allied During Kill 8 | . . 8 . Successful Hack 5 | . 5 . . Influence Decreases 133 | . 35 98 . Entered New Map 13 | . . 13 . Time Decay 120 | . 35 85 . Squads Dispatched . | . . . . Investigation . | . . . . Extermination . | . . . . Reinforcement . | . . . . Assault . | . . . . Garrison . | . . . . Intercept . | . . . . Searches Triggered . | . . . . Construction Impeded . | . . . . Haulers Reinforced . | . . . . Active Scanning Responses . | . . . . Cargo Convoy Interrupts . | . . . . Stealth | -11 -10 -10 -10 --------- Run | Yrd Mat Min Sub Distress Signals . | . . . . Communications Jammed . | . . . . Distress Signals . | . . . . Times Spotted 7 | . 3 3 1 Peak Tracking Total 2 | . 2 1 1 Tactical Retreats . | . . . . Traps | -11 -10 -10 -10 ------- Run | Yrd Mat Min Sub Traps Triggered 2 | . 2 . . Indirectly . | . . . . Trap Hack Attempts . | . . . . Triggered . | . . . . Disarmed . | . . . . Reprogrammed . | . . . . Reused . | . . . . Traps Extracted . | . . . . Installed . | . . . . Triggered . | . . . . Machines | -11 -10 -10 -10 ---------- Run | Yrd Mat Min Sub Machines Disabled . | . . . . Max in Single Turn . | . . . . Machines Repaired . | . . . . Machines Dismantled . | . . . . Machines Sabotaged . | . . . . Overloaded Fab Kills . | . . . . Hacking | -11 -10 -10 -10 --------- Run | Yrd Mat Min Sub Machines Accessed 2 | . 2 . . Terminals 2 | . 2 . . Fabricators . | . . . . Repair Stations . | . . . . Recycling Units . | . . . . Scanalyzers . | . . . . Garrison Access . | . . . . Total Hacks 9 | . 9 . . Successful 3 | . 3 . . Failed 6 | . 6 . . Catastrophic 1 | . 1 . . Database Lockouts . | . . . . Manual 8 | . 8 . . Terminals 9 | . 9 . . Fabricators . | . . . . Repair Stations . | . . . . Recycling Units . | . . . . Scanalyzers . | . . . . Garrison Access . | . . . . Terminal Hacks 1 | . 1 . . Record 1 | . 1 . . Fabricator Hacks . | . . . . Repair Station Hacks . | . . . . Recycling Unit Hacks . | . . . . Scanalyzer . | . . . . Garrison Access Hacks . | . . . . Unauthorized Hacks 2 | . 2 . . Terminals 2 | . 2 . . Botnet 2 | . 2 . . Fabricators . | . . . . Repair Stations . | . . . . Recycling Units . | . . . . Scanalyzers . | . . . . Garrison Access . | . . . . Data Cores Recovered . | . . . . Used . | . . . . Hacking Detections 2 | . 2 . . Full Trace Events . | . . . . Feedback Events . | . . . . Feedback Blocked . | . . . . Robot Schematics Acquired . | . . . . Robots Built . | . . . . Authchips . | . . . . Time . | . . . . Total Robot Build Rating . | . . . . Part Schematics Acquired . | . . . . Parts Built . | . . . . Authchips . | . . . . Time . | . . . . Total Part Build Rating . | . . . . Part Studies Acquired . | . . . . Parts Repaired . | . . . . Time . | . . . . Parts Recycled . | . . . . Recycled Matter . | . . . . Retrieved Matter . | . . . . Retrieved Components . | . . . . Parts Scanalyzed . | . . . . Part Schematics Acquired . | . . . . Parts Damaged . | . . . . Bothacking | -11 -10 -10 -10 ------------ Run | Yrd Mat Min Sub Used RIF Installer . | . . . . Robots Hacked . | . . . . Non-combat . | . . . . Combat . | . . . . Robot Hacks Applied . | . . . . Relay Couplers Released . | . . . . Fabnet Peak Effective % . | . . . . Robots Rewired . | . . . . Allies Hacked . | . . . . Hacks Repelled . | . . . . Allies | -11 -10 -10 -10 -------- Run | Yrd Mat Min Sub Total Allies 2 | . . 2 . Largest Group 2 | . . 2 2 Highest-Rated Group 51 | . . 51 51 Highest-Rated Ally 31 | . . 31 31 Total Orders . | . . . . Ally Attacks 12 | . . 9 3 Total Damage 149 | . . 85 64 Kills 2 | . . 1 1 Allies Corrupted . | . . . . Allies Melted . | . . . . Intel | -11 -10 -10 -10 ------- Run | Yrd Mat Min Sub Active Infowar (turns) . | . . . . Robot Analysis Total . | . . . . Derelict Logs Recovered 1 | . . 1 . Drone Launches . | . . . . Drone Recoveries . | . . . . Exploration | -11 -10 -10 -10 ------------- Run | Yrd Mat Min Sub Turns Passed 781 | 36 130 316 299 Spaces Moved 502 | 31 66 217 188 Core . | . . . . Treads . | . . . . Legs 39 | 31 8 . . Wheels 463 | . 58 217 188 Hover . | . . . . Flight . | . . . . Fastest Speed 80 | 120 80 140 119 Average Speed 132 | 120 131 140 126 Slowest Speed 200 | 120 200 140 140 Overloaded Moves . | . . . . Propulsion Burnouts . | . . . . Robots Hopped . | . . . . Potential Cave-ins 5 | . . . 5 Cave-ins Triggered 3 | . . . 3 Exploration Rate (%) 21 | 3 21 48 15 Regions Visited 3 Branch Regions 2 Pre-discovered Areas . | . . . . Known Exits Taken . | . . . . Unknown Exits Taken 3 | 1 1 1 . Scrap Searched . | . . . . Spaces Dug 5 | . . . 5 Terrain Destroyed 6 | . . . 6 Melee . | . . . . Projectile 6 | . . . 6 AOE . | . . . . Terrain Rammed . | . . . . Walls Destroyed . | . . . . Machines Disabled . | . . . . Actions | -11 -10 -10 -10 --------- Run | Yrd Mat Min Sub Total 568 | 30 97 222 219 Wait 11 | . 11 . . Move 499 | 30 65 216 188 Hop . | . . . . Pick Up 3 | . 1 . 2 Fast Attach 9 | . 8 1 . Attach 5 | . 1 . 4 Detach 1 | . . 1 . Swap 2 | . . . 2 Drop 5 | . 5 . . Fire 33 | . 6 4 23 Melee . | . . . . Ram . | . . . . Kick . | . . . . Crush . | . . . . Escape Stasis . | . . . . Rewire . | . . . . Trap . | . . . . Miscellaneous . | . . . . Route ------- -11/Scrapyard -10/Materials -10/Mines -10/Subcaves History --------- Turn | Location | Event 1 | -11/Scrapyard | Discovered new exit (range 3) 37 | -11/Scrapyard | Entered Materials 112 | -10/Materials | Discovered new exit (range 6) 136 | -10/Materials | Met 8R-AWN 167 | -10/Materials | Entered Mines 169 | -10/Mines | Followed 8R-AWN into the Mines 306 | -10/Mines | Build established: Mutant 475 | -10/Mines | Discovered new exit (range 6) 483 | -10/Mines | Entered Subcaves 483 | -10/Subcaves | Accompanied by 2 allies 484 | -10/Subcaves | Approached by a straggling Scientist 488 | -10/Subcaves | Led the pair of lost Derelicts to an unsafe place 490 | -10/Subcaves | Shifting Twisted Machinery released Battle Cannon 698 | -10/Subcaves | A swath of the cavern ceiling suddenly collapsed 741 | -10/Subcaves | Ambushed by Subdweller buried in earth 760 | -10/Subcaves | Crushed by falling debris 763 | -10/Subcaves | Crushed by falling debris 763 | -10/Subcaves | Core integrity fell below 50% 763 | -10/Subcaves | System corruption reached 10% 769 | -10/Subcaves | Core integrity fell below 20% 783 | -10/Subcaves | Crushed by falling debris 783 | -10/Subcaves | Smashed by cave-in Last Messages --------------- 00762_ Sub. Monowheel destroyed. 00763_ The unstable cave ceiling collapses. 00763_ Crushed by falling debris. 00763_ Battle Cannon destroyed. 00763_ System corrupted by crushing effect (+5). 00763_ Lgt. Assault Rifle destroyed. 00763_ System corrupted by crushing effect (+5). 00764_ O936 ZZG9UL 00783_ Crushed by falling debris. 00783_ Com. Wheel destroyed. 00783_ System corrupted by crushing effect (+1). 00783_ Lgt. Assault Rifle destroyed. 00783_ System corrupted by crushing effect (+2). 00783_ Sml. Laser destroyed. 00783_ System corrupted by crushing effect (+4). Map ----- +----------------------------------------------------+ | ?????????????????????????????????????????????????? | | ?????????????????????????????????????????????????? | | ?????????????????????????????????????????????????? | | ?????????????????????????????????????????????????? | | ?????????????????????????????????????????????????? | | ?????????????????????????????????????????????????? | | ?????????????????????????????????????????????????? | | ?????????????????????????????????????????????????? | | ?????????????????????????????????????????????????? | | ?????????????????????????????????????????????????? | | ?????????????????????????????????????????????????? | | ?????????????????????????????????????????????????? | | ?????????????????????????????????????????????????? | | ?????????????????????????????????????????????????? | | ?????????????????????????????????????????????????? | | ?????????????????????????????????????????????????? | | ???????????????????? ????????????????????????????? | | ???????????????????? ????????????????????????????? | | ???????????????????# ????????????????????????????? | | ?????????????????## ?????????????????????????????? | | ????????????????# ?????????????????????????????? | | ???????????????? ?????????????????????????????? | | ???????????????? #?????????????????????????????? | | ???????????????? ??????????????????????????????? | | #############???# ????#####?????????????????????? | | ## ## # #??? #?#### @##?????????????????????? | | #???? ###%#[####?????????????????????? | | ######*#"!######???????#??????????????? | | # # ## #####"####????? #??????????????? | | ## #"" ### # ## #???????????????? | | ### # # ##" #???????????????? | | # #?#### ## " # #??????????????? | | ####????# ####### ####### ##??????????????? | | ????????#####?????## #?????????##???????????????? | | ???????????????????####??????????????????????????? | | ?????????????????????????????????????????????????? | | ?????????????????????????????????????????????????? | | ?????????????????????????????????????????????????? | | ?????????????????????????????????????????????????? | | ?????????????????????????????????????????????????? | | ?????????????????????????????????????????????????? | | ?????????????????????????????????????????????????? | | ?????????????????????????????????????????????????? | | ?????????????????????????????????????????????????? | | ?????????????????????????????????????????????????? | | ?????????????????????????????????????????????????? | | ?????????????????????????????????????????????????? | | ?????????????????????????????????????????????????? | | ?????????????????????????????????????????????????? | | | +----------------------------------------------------+ Best States ------------- Heat Dissipation 39 Energy Generation 10 Energy Capacity 250 Matter Stores 300 Matter Capacity 300 Sight Range 16 Terrain Scan Density 10 Evasion (%) 55 Item Schematics ----------------- None Robot Schematics ------------------ None Fabricated ------------ Nothing Repaired ---------- Nothing Studied --------- None Alien Tech Used ----------------- None Achievements -------------- Do Not Disturb Follow The Leader Challenges ------------ None Game ------ Seed ReactionDeuteriumShovel Manual? 0 Play Time 00:09:07 Cumulative 130.0 hours Start 2026.08.20 @ 19:32:22 End 2026.08.21 @ 14:53:54 Sessions 1 Manual Loads 0 Difficulty Rogue Special Mode None Game No. 192 Rogue 175 Adventurer 15 Explorer 2 Win Type - Total 2 Types 1/0/0/1/0/0/0/0/0/0 Lore% 23 Gallery% 50 Achievement% 30 Wizard Run 0 Options --------- Layout 0 ASCII 0 Keyboard 0 Movement Arrows Keybinds 0 Fullscreen 1 Font 36/Smallcaps Map View 76x50 Zoom Use 0% Tactical HUD 1 Map Filters NONE Filters NONE Steam 1 RUN: 2212b504-7249-4c18-98f8-a5b2e7bf10f0